[Event "XLIV Barbera del Valles-A 2022"]
[Site "Barbera del Valles"]
[Date "2022.07.11"]
[Round "8.6"]
[White "Munoz, Miguel"]
[Black "Asis Gargatagli, Hipolito"]
[Result "1/2-1/2"]
[ECO "C77"]
[WhiteElo "2408"]
[BlackElo "2514"]
[Annotator "ChessBase"]
[PlyCount "77"]
[EventDate "2022.07.04"]
[EventType "swiss"]
[EventCountry "ESP"]
[SourceTitle "playchess.com"]
[Source "ChessBase"]
[SourceQuality "1"]
[TimeControl "5400+30"]

1. e4 {[%emt 1:31:00]} e5 {[%emt 1:31:00]} 2. Nf3 {[%emt 0:00:30]} Nc6 {[%emt 0:00:30]} 3. Bb5 {[%emt 0:00:30]} a6 {[%emt 0:00:30]} 4. Ba4 {[%emt 0:00:30]} Nf6 {[%emt 0:00:30]} 5. Bxc6 {[%emt 0:00:30]} dxc6 {[%emt 0:00:30]} 6. d3 {[%emt 0:00:30]} Bd6 {[%emt 0:00:30]} 7. Nbd2 {[%emt 0:00:30]} Be6 {[%emt 0:00:30]} 8. Ng5 {[%emt 0:00:30]} Bg4 {[%emt 0:00:30]} 9. Ngf3 {[%emt 0:00:30]} Nd7 {[%emt 0:00:30]} 10. h3 {[%emt 0:00:30]} Be6 {[%emt 0:00:30]} 11. Nc4 {[%emt 0:00:30]} f6 {[%emt 0:00:30]} 12. Qe2 {[%emt 0:00:30]} Qe7 {[%emt 0:00:30]} 13. Be3 {[%emt 0:00:30]} a5 {[%emt 0:00:30]} 14. Nfd2 {[%emt 0:00:30]} Bc5 {[%emt 0:00:30]} 15. O-O {[%emt 0:00:30]} O-O {[%emt 0:00:30]} 16. a4 {[%emt 0:00:30]} b6 {[%emt 0:00:30]} 17. Bxc5 {[%emt 0:00:30]} Nxc5 {[%emt 0:00:30]} 18. Ne3 {[%emt 0:00:30]} b5 {[%emt 0:00:30]} 19. axb5 {[%emt 0:00:30]} cxb5 {[%emt 0:00:30]} 20. f4 {[%emt 0:00:30]} exf4 {[%emt 0:00:30]} 21. Rxf4 {[%emt 0:00:30]} Na4 {[%emt 0:00:30]} 22. Qh5 {[%emt 0:00:30]} Qd7 {[%emt 0:00:30]} 23. Nf3 {[%emt 0:00:30]} Nxb2 {[%emt 0:00:30]} 24. e5 {[%emt 0:00:30]} Na4 {[%emt 0:00:30]} 25. exf6 {[%emt 0:00:30]} Rxf6 {[%emt 0:00:30]} 26. Rxf6 {[%emt 0:00:30]} gxf6 {[%emt 0:00:30]} 27. Qh4 {[%emt 0:00:30]} Rf8 {[%emt 0:00:30]} 28. d4 {[%emt 0:00:30]} c6 {[%emt 0:00:30]} 29. c4 {[%emt 0:00:30]} Nb6 {[%emt 0:00:30]} 30. cxb5 {[%emt 0:00:30]} cxb5 {[%emt 0:00:30]} 31. Rxa5 {[%emt 0:00:30]} Nd5 {[%emt 0:00:30]} 32. Nxd5 {[%emt 0:00:30]} Bxd5 {[%emt 0:00:30]} 33. Nd2 {[%emt 0:00:30]} Qg7 {[%emt 0:00:30]} 34. Qf2 {[%emt 0:00:30]} Rb8 {[%emt 0:00:30]} 35. Ra3 {[%emt 0:00:30]} Kh8 {[%emt 0:00:30]} 36. Rg3 {[%emt 0:00:30]} Qe7 {[%emt 0:00:30]} 37. Re3 {[%emt 0:00:30]} Qg7 {[%emt 0:00:30]} 38. Rg3 {[%emt 0:00:30]} Qe7 {[%emt 0:00:30]} 39. Re3 {[%emt 0:00:30]} 1/2-1/2

[Event "XLIV Barbera del Valles-A 2022"]
[Site "Barbera del Valles"]
[Date "2022.07.11"]
[Round "8.7"]
[White "Sanchez, Sebastian Felipe"]
[Black "Del Amo Carbo, Jordi"]
[Result "1/2-1/2"]
[ECO "A45"]
[WhiteElo "2440"]
[BlackElo "2148"]
[Annotator "ChessBase"]
[PlyCount "70"]
[EventDate "2022.07.04"]
[EventType "swiss"]
[EventCountry "ESP"]
[SourceTitle "playchess.com"]
[Source "ChessBase"]
[SourceQuality "1"]
[TimeControl "5400+30"]

1. d4 {[%emt 0:00:03]} Nf6 {[%emt 0:03:31]} 2. Bg5 {[%emt 0:00:08]} d5 {[%emt 0:00:36]} 3. e3 {[%emt 0:00:34]} c5 {[%emt 0:00:19]} 4. c3 {[%emt 0:02:35]} e6 {[%emt 0:00:56]} 5. Nd2 {[%emt 0:00:06]} Nc6 {[%emt 0:00:17]} 6. f4 {[%emt 0:00:20]} Be7 {[%emt 0:01:19]} 7. Bd3 {[%emt 0:00:36]} O-O {[%emt 0:10:12]} 8. Ngf3 {[%emt 0:00:31]} b6 {[%emt 0:01:11]} 9. O-O {[%emt 0:06:39]} Bb7 {[%emt 0:01:35]} 10. Ne5 {[%emt 0:00:18]} h6 {[%emt 0:06:48]} 11. Bh4 {[%emt 0:02:56]} Ne4 {[%emt 0:05:55]} 12. Bxe7 {[%emt 0:03:00]} Nxe7 {[%emt 0:02:00]} 13. Qe2 {[%emt 0:13:14]} f6 {[%emt 0:04:51]} 14. Ng4 {[%emt 1:06:30]} Nf5 {[%emt 0:01:50]} 15. Rad1 {[%emt 0:00:00]} Qe7 {[%emt 0:01:01]} 16. Nf2 {[%emt 0:00:00]} Nfd6 {[%emt 0:02:45]} 17. Rfe1 {[%emt 0:00:00]} Rad8 {[%emt 0:03:32]} 18. Bxe4 {[%emt 0:00:00]} dxe4 {[%emt 0:01:04]} 19. dxc5 {[%emt 0:00:00]} bxc5 {[%emt 0:00:12]} 20. c4 {[%emt 0:00:00]} f5 {[%emt 0:14:03]} 21. Nb1 {[%emt 0:00:00]} e5 {[%emt 0:00:39]} 22. fxe5 {[%emt 0:00:00]} Qxe5 {[%emt 0:02:40]} 23. Nc3 {[%emt 0:00:00]} Nf7 {[%emt 0:06:38]} 24. Qc2 {[%emt 0:00:00]} Bc6 {[%emt 0:03:28]} 25. Ne2 {[%emt 0:00:00]} g5 {[%emt 0:03:26]} 26. Qc3 {[%emt 0:00:00]} Qxc3 {[%emt 0:02:23]} 27. Nxc3 {[%emt 0:00:00]} Ne5 {[%emt 0:00:14]} 28. b3 {[%emt 0:00:00]} Kf7 {[%emt 0:00:27]} 29. Kf1 {[%emt 0:00:00]} h5 {[%emt 0:00:35]} 30. Ke2 {[%emt 0:00:00]} Ke6 {[%emt 0:00:21]} 31. Rf1 {[%emt 0:00:00]} h4 {[%emt 0:05:06]} 32. Nh3 {[%emt 0:00:00]} Kf6 {[%emt 0:01:42]} 33. Nf2 {[%emt 0:00:00]} Ke6 {[%emt 0:00:25]} 34. Nh3 {[%emt 0:00:00]} Kf6 {[%emt 0:04:33]} 35. Nf2 {[%emt 0:00:00]} Ke6 {[%emt 0:00:07]} 1/2-1/2

[Event "XLIV Barbera del Valles-A 2022"]
[Site "Barbera del Valles"]
[Date "2022.07.11"]
[Round "8.8"]
[White "Alvarez Albiol, Victor"]
[Black "Ortiz Verdezoto, Anahi"]
[Result "1-0"]
[ECO "C60"]
[WhiteElo "2367"]
[BlackElo "2046"]
[Annotator "ChessBase"]
[PlyCount "82"]
[EventDate "2022.07.04"]
[EventType "swiss"]
[EventCountry "ESP"]
[SourceTitle "playchess.com"]
[Source "ChessBase"]
[SourceQuality "1"]
[TimeControl "5400+30"]

1. e4 {[%emt 0:00:03]} e5 {[%emt 0:00:05]} 2. Nf3 {[%emt 0:00:08]} Nc6 {[%emt 0:00:06]} 3. Bb5 {[%emt 0:00:05]} Nge7 {[%emt 0:00:07]} 4. c3 {[%emt 0:01:58]} a6 {[%emt 0:03:06]} 5. Bc4 {[%emt 0:06:46]} d5 {[%emt 0:05:58]} 6. exd5 {[%emt 0:03:00]} Nxd5 {[%emt 0:00:17]} 7. O-O {[%emt 0:01:23]} Nb6 {[%emt 0:05:37]} 8. Bb3 {[%emt 0:01:31]} Bd6 {[%emt 0:00:04]} 9. d4 {[%emt 0:01:49]} O-O {[%emt 0:03:55]} 10. dxe5 {[%emt 0:25:39]} Nxe5 {[%emt 0:02:30]} 11. Nxe5 {[%emt 0:00:09]} Bxe5 {[%emt 0:00:58]} 12. Bxf7+ {[%emt 0:08:50]} Kxf7 {[%emt 0:00:12]} 13. Qh5+ {[%emt 0:00:07]} Ke6 {[%emt 0:24:53]} 14. f4 {[%emt 0:04:27]} Rf5 {[%emt 0:00:11]} 15. Qe2 {[%emt 0:10:43]} Qd5 {[%emt 0:11:53]} 16. Re1 {[%emt 0:04:49]} Kf7 {[%emt 0:02:28]} 17. fxe5 {[%emt 0:01:19]} Nc4 {[%emt 0:02:10]} 18. Nd2 {[%emt 0:02:40]} Nxe5 {[%emt 0:09:09]} 19. Ne4 {[%emt 0:00:52]} Qd3 {[%emt 0:05:47]} 20. Ng3 {[%emt 0:03:42]} Qxe2 {[%emt 0:07:25]} 21. Rxe2 {[%emt 0:00:07]} Nd3 {[%emt 0:00:07]} 22. Nxf5 {[%emt 0:00:12]} Bxf5 {[%emt 0:00:01]} 23. Bg5 {[%emt 0:00:58]} Kg6 {[%emt 0:00:19]} 24. Bh4 {[%emt 0:01:09]} Nf4 {[%emt 0:01:01]} 25. Re7 {[%emt 0:02:06]} Rf8 {[%emt 0:00:30]} 26. Rf1 {[%emt 0:06:06]} Bd3 {[%emt 0:04:11]} 27. Rf2 {[%emt 0:00:53]} Rf5 {[%emt 0:01:03]} 28. Bg3 {[%emt 0:02:04]} Nd5 {[%emt 0:00:52]} 29. Rd7 {[%emt 0:02:02]} c6 {[%emt 0:05:16]} 30. Rxf5 {[%emt 0:00:40]} Kxf5 {[%emt 0:00:22]} 31. Rxg7 {[%emt 0:01:01]} Ne3 {[%emt 0:00:12]} 32. Rxh7 {[%emt 0:01:47]} Nd1 {[%emt 0:01:13]} 33. Rxb7 {[%emt 0:00:19]} Bb5 {[%emt 0:00:02]} 34. c4 {[%emt 0:02:17]} Bxc4 {[%emt 0:00:03]} 35. b3 {[%emt 0:00:16]} Bd3 {[%emt 0:03:05]} 36. Rb6 {[%emt 0:01:21]} Nc3 {[%emt 0:00:14]} 37. a4 {[%emt 0:01:19]} c5 {[%emt 0:01:06]} 38. Rc6 {[%emt 0:01:23]} Ke4 {[%emt 0:02:28]} 39. Rxc5 {[%emt 0:00:36]} Ne2+ {[%emt 0:00:04]} 40. Kf2 {[%emt 0:00:35]} Kd4 {[%emt 0:00:24]} 41. Rc7 {[%emt 0:00:23]} Kd5 {[%emt 0:01:36]} 1-0

[Event "XLIV Barbera del Valles-A 2022"]
[Site "Barbera del Valles"]
[Date "2022.07.11"]
[Round "8.9"]
[White "Barros, Raul Junior"]
[Black "Perez Bolanos, David"]
[Result "1-0"]
[ECO "C22"]
[WhiteElo "2174"]
[BlackElo "2041"]
[Annotator "ChessBase"]
[PlyCount "91"]
[EventDate "2022.07.04"]
[EventType "swiss"]
[EventCountry "ESP"]
[SourceTitle "playchess.com"]
[Source "ChessBase"]
[SourceQuality "1"]
[TimeControl "5400+30"]

1. e4 {[%emt 1:31:00]} e5 {[%emt 0:02:07]} 2. d4 {[%emt 0:00:00]} exd4 {[%emt 0:00:17]} 3. Qxd4 {[%emt 0:00:00]} Nc6 {[%emt 0:00:16]} 4. Qc4 {[%emt 0:00:00]} Bb4+ {[%emt 0:02:02]} 5. Bd2 {[%emt 0:00:00]} Bxd2+ {[%emt 0:00:28]} 6. Nxd2 {[%emt 0:00:00]} Nf6 {[%emt 0:03:36]} 7. O-O-O {[%emt 0:00:00]} O-O {[%emt 0:01:23]} 8. g3 {[%emt 0:00:00]} Rb8 {[%emt 0:09:08]} 9. Bg2 {[%emt 0:00:00]} d6 {[%emt 0:06:40]} 10. Nb3 {[%emt 0:00:00]} Be6 {[%emt 0:05:29]} 11. Qc3 {[%emt 0:00:00]} a5 {[%emt 0:07:13]} 12. Kb1 {[%emt 0:00:00]} Nd7 {[%emt 0:02:58]} 13. Ne2 {[%emt 0:00:00]} f6 {[%emt 0:14:28]} 14. Nf4 {[%emt 0:00:00]} Bf7 {[%emt 0:00:18]} 15. Nd5 {[%emt 0:00:00]} a4 {[%emt 0:02:08]} 16. Nd4 {[%emt 0:00:00]} Nxd4 {[%emt 0:00:41]} 17. Rxd4 {[%emt 0:00:00]} Nc5 {[%emt 0:00:26]} 18. Rhd1 {[%emt 0:00:00]} Re8 {[%emt 0:06:46]} 19. f4 {[%emt 0:00:00]} Kh8 {[%emt 0:03:23]} 20. Qf3 {[%emt 0:00:00]} Bg6 {[%emt 0:06:44]} 21. f5 {[%emt 0:00:00]} Bf7 {[%emt 0:00:58]} 22. g4 {[%emt 0:00:00]} Bxd5 {[%emt 0:02:49]} 23. exd5 {[%emt 0:00:00]} Re5 {[%emt 0:00:37]} 24. Bf1 {[%emt 0:00:00]} Qe7 {[%emt 0:01:42]} 25. Bb5 {[%emt 0:00:00]} Ra8 {[%emt 0:09:45]} 26. a3 {[%emt 0:00:13]} Ra5 {[%emt 0:01:33]} 27. Qf1 {[%emt 0:01:48]} h6 {[%emt 0:10:05]} 28. Qc4 {[%emt 0:03:21]} Qd8 {[%emt 0:00:00]} 29. Qb4 {[%emt 0:01:19]} Qa8 {[%emt 0:00:00]} 30. h4 {[%emt 0:01:26]} Kh7 {[%emt 0:00:00]} 31. Rg1 {[%emt 0:01:12]} c6 {[%emt 0:00:00]} 32. Bc4 {[%emt 0:02:34]} Nb3 {[%emt 0:00:00]} 33. Rd3 {[%emt 0:01:31]} Nc5 {[%emt 0:01:04]} 34. Rdd1 {[%emt 0:01:17]} b5 {[%emt 0:00:50]} 35. Ba2 {[%emt 0:00:59]} Ra7 {[%emt 0:00:13]} 36. g5 {[%emt 0:00:41]} Rxf5 {[%emt 0:01:16]} 37. gxh6 {[%emt 0:00:22]} g6 {[%emt 0:00:43]} 38. Rxg6 {[%emt 0:00:38]} Kxg6 {[%emt 0:00:44]} 39. Qg4+ {[%emt 0:01:39]} Rg5 {[%emt 0:01:10]} 40. hxg5 {[%emt 0:00:30]} fxg5 {[%emt 0:00:30]} 41. Rf1 {[%emt 0:00:30]} Qg8 {[%emt 0:00:30]} 42. Qf5+ {[%emt 0:00:00]} Kxh6 {[%emt 0:00:00]} 43. Rh1+ {[%emt 0:00:00]} Kg7 {[%emt 0:00:00]} 44. Qxg5+ {[%emt 0:00:00]} Kf8 {[%emt 0:00:00]} 45. Rf1+ {[%emt 0:00:00]} Rf7 {[%emt 0:00:00]} 46. Qd8+ {[%emt 0:02:30]} 1-0

[Event "XLIV Barbera del Valles-A 2022"]
[Site "Barbera del Valles"]
[Date "2022.07.11"]
[Round "8.10"]
[White "Vergara Jofre, Felipe"]
[Black "Deodhar, Vrushali Umesh"]
[Result "1-0"]
[ECO "C02"]
[WhiteElo "2151"]
[BlackElo "1984"]
[Annotator "ChessBase"]
[PlyCount "133"]
[EventDate "2022.07.04"]
[EventType "swiss"]
[EventCountry "ESP"]
[SourceTitle "playchess.com"]
[Source "ChessBase"]
[SourceQuality "1"]
[TimeControl "5400+30"]

1. e4 {[%emt 0:04:22]} e6 {[%emt 0:00:07]} 2. d4 {[%emt 0:00:07]} d5 {[%emt 0:00:07]} 3. e5 {[%emt 0:00:03]} c5 {[%emt 0:00:09]} 4. c3 {[%emt 0:00:02]} Nc6 {[%emt 0:00:06]} 5. Nf3 {[%emt 0:00:03]} Bd7 {[%emt 0:00:05]} 6. Be2 {[%emt 0:00:10]} Nge7 {[%emt 0:00:39]} 7. Na3 {[%emt 0:00:08]} Nf5 {[%emt 0:08:54]} 8. Nc2 {[%emt 0:02:13]} Be7 {[%emt 0:00:43]} 9. dxc5 {[%emt 0:14:48]} Qc7 {[%emt 1:24:10]} 10. Ncd4 {[%emt 0:13:30]} Nh4 {[%emt 0:00:00]} 11. Nxh4 {[%emt 0:06:29]} Bxh4 {[%emt 0:00:00]} 12. Nxc6 {[%emt 0:00:26]} Bxc6 {[%emt 0:00:00]} 13. Qd4 {[%emt 0:02:34]} Be7 {[%emt 0:00:00]} 14. O-O {[%emt 0:02:01]} O-O {[%emt 0:00:00]} 15. Be3 {[%emt 0:07:37]} f6 {[%emt 0:00:00]} 16. f4 {[%emt 0:00:02]} f5 {[%emt 0:00:00]} 17. b4 {[%emt 0:10:46]} Qd7 {[%emt 0:00:00]} 18. c4 {[%emt 0:04:20]} a6 {[%emt 0:00:00]} 19. cxd5 {[%emt 0:12:13]} Bxd5 {[%emt 0:00:00]} 20. Bc4 {[%emt 0:00:58]} Rfd8 {[%emt 0:00:00]} 21. Bxd5 {[%emt 0:05:17]} Qxd5 {[%emt 0:00:00]} 22. Qxd5 {[%emt 0:00:47]} Rxd5 {[%emt 0:00:00]} 23. Kf2 {[%emt 0:01:51]} a5 {[%emt 0:00:00]} 24. a3 {[%emt 0:00:05]} Rd3 {[%emt 0:00:00]} 25. Rfd1 {[%emt 0:04:52]} Rad8 {[%emt 0:00:00]} 26. Ke2 {[%emt 0:00:57]} Rxd1 {[%emt 0:00:00]} 27. Rxd1 {[%emt 0:00:02]} Rxd1 {[%emt 0:00:00]} 28. Kxd1 {[%emt 0:00:02]} axb4 {[%emt 0:00:00]} 29. axb4 {[%emt 0:00:01]} Kf7 {[%emt 0:00:00]} 30. Ke2 {[%emt 0:08:05]} Ke8 {[%emt 0:00:00]} 31. Kd3 {[%emt 0:00:18]} Kd7 {[%emt 0:00:00]} 32. Kc4 {[%emt 0:00:45]} Kc6 {[%emt 0:00:00]} 33. Bd2 {[%emt 0:00:34]} Bd8 {[%emt 0:00:00]} 34. b5+ {[%emt 0:00:17]} Kd7 {[%emt 0:00:00]} 35. Bb4 {[%emt 0:00:15]} g6 {[%emt 0:00:00]} 36. h3 {[%emt 0:00:47]} Bh4 {[%emt 0:00:00]} 37. g4 {[%emt 0:00:28]} h6 {[%emt 0:00:00]} 38. Kd3 {[%emt 0:00:42]} Bd8 {[%emt 0:00:00]} 39. Ke3 {[%emt 0:00:17]} Bh4 {[%emt 0:00:00]} 40. Kf3 {[%emt 0:00:08]} Kc7 {[%emt 0:00:00]} 41. Ba5+ {[%emt 0:00:24]} Kd7 {[%emt 0:00:00]} 42. Bb6 {[%emt 0:00:13]} Be1 {[%emt 0:00:00]} 43. Ba7 {[%emt 0:00:11]} Kc8 {[%emt 0:00:00]} 44. Bb6 {[%emt 0:00:12]} Kd7 {[%emt 0:00:00]} 45. Ke2 {[%emt 0:01:17]} Bg3 {[%emt 0:00:00]} 46. Ke3 {[%emt 0:00:09]} Be1 {[%emt 0:00:00]} 47. Kf3 {[%emt 0:00:10]} Bh4 {[%emt 0:00:00]} 48. Ba5 {[%emt 0:00:04]} Be7 {[%emt 0:00:00]} 49. Bb4 {[%emt 0:00:10]} Bh4 {[%emt 0:00:00]} 50. Bd2 {[%emt 0:00:45]} Bd8 {[%emt 0:00:00]} 51. Kg3 {[%emt 0:01:31]} Be7 {[%emt 0:00:00]} 52. Be3 {[%emt 0:00:58]} Bd8 {[%emt 0:00:00]} 53. g5 {[%emt 0:01:00]} h5 {[%emt 0:00:19]} 54. Bd2 {[%emt 0:00:30]} Bc7 {[%emt 0:04:39]} 55. Kf3 {[%emt 0:00:08]} Bd8 {[%emt 0:00:16]} 56. Ke3 {[%emt 0:00:06]} Be7 {[%emt 0:00:30]} 57. Bb4 {[%emt 0:01:04]} Bd8 {[%emt 0:04:10]} 58. Kd4 {[%emt 0:00:01]} Bc7 {[%emt 0:00:23]} 59. Kc4 {[%emt 0:00:14]} Bd8 {[%emt 0:00:12]} 60. Bc3 {[%emt 0:01:20]} Be7 {[%emt 0:00:24]} 61. Bd2 {[%emt 0:00:33]} Bd8 {[%emt 0:00:08]} 62. Bb4 {[%emt 0:00:05]} Bc7 {[%emt 0:00:20]} 63. b6 {[%emt 0:00:39]} Bd8 {[%emt 0:00:01]} 64. Kb5 {[%emt 0:00:04]} Be7 {[%emt 0:01:31]} 65. c6+ {[%emt 0:01:10]} bxc6+ {[%emt 0:00:05]} 66. Ka6 {[%emt 0:00:01]} c5 {[%emt 0:00:54]} 67. b7 {[%emt 0:01:39]} 1-0

[Event "XLIV Barbera del Valles-A 2022"]
[Site "Barbera del Valles"]
[Date "2022.07.12"]
[Round "9.1"]
[White "Gkoumas, Georgios"]
[Black "Valenzuela Gomez, Fernando"]
[Result "1-0"]
[ECO "C80"]
[WhiteElo "2427"]
[BlackElo "2373"]
[Annotator "ChessBase"]
[PlyCount "49"]
[EventDate "2022.07.04"]
[EventType "swiss"]
[EventCountry "ESP"]
[SourceTitle "playchess.com"]
[Source "ChessBase"]
[SourceQuality "1"]
[TimeControl "5400+30"]

1. e4 {[%emt 0:00:02]} e5 {[%emt 0:02:45]} 2. Nf3 {[%emt 0:00:14]} Nc6 {[%emt 0:00:12]} 3. Bb5 {[%emt 0:00:15]} a6 {[%emt 0:00:11]} 4. Ba4 {[%emt 0:00:07]} Nf6 {[%emt 0:00:04]} 5. O-O {[%emt 0:00:07]} Nxe4 {[%emt 0:00:08]} 6. Re1 {[%emt 0:00:57]} Nc5 {[%emt 0:00:37]} 7. Bxc6 {[%emt 0:00:09]} dxc6 {[%emt 0:00:07]} 8. Nxe5 {[%emt 0:00:06]} Be7 {[%emt 0:01:20]} 9. d4 {[%emt 0:01:00]} Ne6 {[%emt 0:00:09]} 10. Be3 {[%emt 0:00:13]} O-O {[%emt 0:00:19]} 11. c4 {[%emt 0:00:05]} Bf6 {[%emt 0:02:25]} 12. f4 {[%emt 0:09:01]} g6 {[%emt 0:09:44]} 13. Nc3 {[%emt 0:03:29]} Ng7 {[%emt 0:00:39]} 14. Qf3 {[%emt 0:16:08]} Bh4 {[%emt 0:22:48]} 15. g3 {[%emt 0:12:08]} Be7 {[%emt 0:00:10]} 16. d5 {[%emt 0:00:11]} f6 {[%emt 0:04:43]} 17. dxc6 {[%emt 0:01:01]} fxe5 {[%emt 0:00:13]} 18. cxb7 {[%emt 0:00:08]} Bxb7 {[%emt 0:01:18]} 19. Qxb7 {[%emt 0:00:07]} Nf5 {[%emt 0:01:46]} 20. Rad1 {[%emt 0:05:55]} Qb8 {[%emt 0:00:02]} 21. Qxb8 {[%emt 0:06:06]} Raxb8 {[%emt 0:00:08]} 22. Nd5 {[%emt 0:00:26]} Rxb2 {[%emt 0:01:07]} 23. Nxe7+ {[%emt 0:03:57]} Nxe7 {[%emt 0:00:02]} 24. Bc5 {[%emt 0:00:14]} Rf7 {[%emt 0:00:02]} 25. fxe5 {[%emt 0:05:33]} 1-0

[Event "XLIV Barbera del Valles-A 2022"]
[Site "Barbera del Valles"]
[Date "2022.07.12"]
[Round "9.2"]
[White "Narciso Dublan, Marc"]
[Black "Cuartas, Jaime Alexander"]
[Result "0-1"]
[ECO "A07"]
[WhiteElo "2461"]
[BlackElo "2513"]
[Annotator "ChessBase"]
[PlyCount "84"]
[EventDate "2022.07.04"]
[EventType "swiss"]
[EventCountry "ESP"]
[SourceTitle "playchess.com"]
[Source "ChessBase"]
[SourceQuality "1"]
[TimeControl "5400+30"]

1. g3 {[%emt 0:00:03]} d5 {[%emt 0:00:33]} 2. Bg2 {[%emt 0:00:06]} Nf6 {[%emt 0:00:06]} 3. d3 {[%emt 0:00:09]} e5 {[%emt 0:00:28]} 4. Nf3 {[%emt 0:00:07]} Nc6 {[%emt 0:00:10]} 5. O-O {[%emt 0:00:10]} Be7 {[%emt 0:00:39]} 6. a3 {[%emt 0:02:15]} a5 {[%emt 0:01:43]} 7. Nc3 {[%emt 0:00:43]} d4 {[%emt 0:01:41]} 8. Nb5 {[%emt 0:00:23]} O-O {[%emt 0:00:19]} 9. e3 {[%emt 0:02:57]} a4 {[%emt 0:02:11]} 10. exd4 {[%emt 0:08:21]} Nxd4 {[%emt 0:01:46]} 11. Nbxd4 {[%emt 0:04:01]} exd4 {[%emt 0:00:08]} 12. Re1 {[%emt 0:00:25]} Re8 {[%emt 0:03:00]} 13. Bg5 {[%emt 0:02:41]} h6 {[%emt 0:01:44]} 14. Bxf6 {[%emt 0:00:32]} Bxf6 {[%emt 0:00:08]} 15. Nd2 {[%emt 0:02:21]} Rxe1+ {[%emt 0:04:13]} 16. Qxe1 {[%emt 0:00:04]} c6 {[%emt 0:00:23]} 17. b4 {[%emt 0:16:38]} axb3 {[%emt 0:03:52]} 18. cxb3 {[%emt 0:00:39]} Be7 {[%emt 0:08:55]} 19. b4 {[%emt 0:01:01]} Be6 {[%emt 0:00:21]} 20. Qc1 {[%emt 0:17:25]} Ra4 {[%emt 0:04:58]} 21. Nc4 {[%emt 0:10:23]} Ra7 {[%emt 0:12:40]} 22. h4 {[%emt 0:11:37]} Qa8 {[%emt 0:02:12]} 23. Nb6 {[%emt 0:02:09]} Qf8 {[%emt 0:00:47]} 24. Rb1 {[%emt 0:02:51]} Qd8 {[%emt 0:03:43]} 25. Nc4 {[%emt 0:00:11]} Bxc4 {[%emt 0:04:20]} 26. Qxc4 {[%emt 0:00:31]} Rxa3 {[%emt 0:00:15]} 27. b5 {[%emt 0:02:28]} Rc3 {[%emt 0:03:54]} 28. Qa4 {[%emt 0:00:22]} Rxd3 {[%emt 0:02:25]} 29. bxc6 {[%emt 0:00:14]} bxc6 {[%emt 0:00:07]} 30. Bxc6 {[%emt 0:09:14]} Ra3 {[%emt 0:00:14]} 31. Qd1 {[%emt 0:00:24]} d3 {[%emt 0:00:27]} 32. Qh5 {[%emt 0:00:28]} Ra5 {[%emt 0:00:19]} 33. Qf3 {[%emt 0:00:52]} d2 {[%emt 0:00:37]} 34. Rd1 {[%emt 0:00:47]} Re5 {[%emt 0:01:39]} 35. Kg2 {[%emt 0:00:18]} Bb4 {[%emt 0:12:14]} 36. Qb3 {[%emt 0:01:21]} Qd4 {[%emt 0:01:12]} 37. Bf3 {[%emt 0:02:06]} g6 {[%emt 0:00:19]} 38. Qa4 {[%emt 0:00:36]} Re1 {[%emt 0:01:02]} 39. Qa8+ {[%emt 0:01:23]} Kg7 {[%emt 0:00:14]} 40. Qa4 {[%emt 0:00:08]} h5 {[%emt 0:00:35]} 41. Qc2 {[%emt 0:00:31]} Bc3 {[%emt 0:00:39]} 42. Qb3 {[%emt 0:01:00]} Qd3 {[%emt 0:00:30]} 0-1

[Event "XLIV Barbera del Valles-A 2022"]
[Site "Barbera del Valles"]
[Date "2022.07.12"]
[Round "9.3"]
[White "Alvarez Albiol, Victor"]
[Black "Rios, Cristhian Camilo"]
[Result "0-1"]
[ECO "B10"]
[WhiteElo "2367"]
[BlackElo "2399"]
[Annotator "ChessBase"]
[PlyCount "86"]
[EventDate "2022.07.04"]
[EventType "swiss"]
[EventCountry "ESP"]
[SourceTitle "playchess.com"]
[Source "ChessBase"]
[SourceQuality "1"]
[TimeControl "5400+30"]

1. e4 {[%emt 0:00:03]} c6 {[%emt 0:00:08]} 2. Nf3 {[%emt 0:00:31]} d5 {[%emt 0:00:06]} 3. d3 {[%emt 0:00:17]} g6 {[%emt 0:00:55]} 4. Nc3 {[%emt 0:00:56]} Bg7 {[%emt 0:00:26]} 5. Qe2 {[%emt 0:01:36]} d4 {[%emt 0:03:31]} 6. Nb1 {[%emt 0:00:58]} e5 {[%emt 0:00:07]} 7. g3 {[%emt 0:05:12]} Ne7 {[%emt 0:00:44]} 8. Bg2 {[%emt 0:00:44]} O-O {[%emt 0:00:36]} 9. O-O {[%emt 0:00:36]} h6 {[%emt 0:00:13]} 10. c3 {[%emt 0:02:10]} c5 {[%emt 0:00:21]} 11. b4 {[%emt 0:11:13]} cxb4 {[%emt 0:02:00]} 12. cxd4 {[%emt 0:01:18]} exd4 {[%emt 0:00:05]} 13. a3 {[%emt 0:00:10]} Nbc6 {[%emt 0:00:05]} 14. axb4 {[%emt 0:00:33]} Nxb4 {[%emt 0:00:06]} 15. Ba3 {[%emt 0:02:24]} Nec6 {[%emt 0:00:07]} 16. Ne1 {[%emt 0:01:18]} Re8 {[%emt 0:00:13]} 17. Nc2 {[%emt 0:02:03]} Nd5 {[%emt 0:06:29]} 18. Qd2 {[%emt 0:05:47]} Nc3 {[%emt 0:03:50]} 19. Bb2 {[%emt 0:03:05]} Na5 {[%emt 0:17:40]} 20. Ra3 {[%emt 0:03:40]} Nxb1 {[%emt 0:07:54]} 21. Rxb1 {[%emt 0:00:17]} b6 {[%emt 0:00:08]} 22. Ba1 {[%emt 0:17:33]} Be6 {[%emt 0:03:44]} 23. e5 {[%emt 0:12:05]} Bd5 {[%emt 0:01:07]} 24. f4 {[%emt 0:00:40]} f6 {[%emt 0:00:52]} 25. Rb5 {[%emt 0:07:25]} Bxg2 {[%emt 0:02:51]} 26. Qxg2 {[%emt 0:00:02]} Rc8 {[%emt 0:01:37]} 27. Bb2 {[%emt 0:06:12]} fxe5 {[%emt 0:02:00]} 28. fxe5 {[%emt 0:00:26]} Bxe5 {[%emt 0:02:54]} 29. Nb4 {[%emt 0:05:18]} Bg7 {[%emt 0:03:13]} 30. Ra1 {[%emt 0:01:57]} Qe7 {[%emt 0:02:06]} 31. Nd5 {[%emt 0:02:15]} Qe1+ {[%emt 0:08:18]} 32. Qf1 {[%emt 0:01:41]} Qxf1+ {[%emt 0:00:36]} 33. Rxf1 {[%emt 0:00:08]} Rc2 {[%emt 0:00:27]} 34. Rf2 {[%emt 0:01:38]} Re1+ {[%emt 0:01:39]} 35. Kg2 {[%emt 0:00:15]} Rxf2+ {[%emt 0:00:34]} 36. Kxf2 {[%emt 0:00:06]} Rb1 {[%emt 0:00:14]} 37. Ne7+ {[%emt 0:02:09]} Kf7 {[%emt 0:01:10]} 38. Nc8 {[%emt 0:00:27]} Nc6 {[%emt 0:00:32]} 39. Nd6+ {[%emt 0:00:54]} Ke6 {[%emt 0:00:38]} 40. Nc4 {[%emt 0:01:17]} Ne5 {[%emt 0:00:50]} 41. Nxe5 {[%emt 0:01:17]} Bxe5 {[%emt 0:00:09]} 42. Kf3 {[%emt 0:00:25]} Bd6 {[%emt 0:00:30]} 43. Ke4 {[%emt 0:00:08]} Bc5 {[%emt 0:00:13]} 0-1